bitfinex/quotes_SOLUSD_20250204
["timestamp","ask_amount","ask_price","bid_price","bid_amount"]
[1738678855848,65.95822739,211.2,211.19,0.0001]
[1738678856050,20.0,211.17,211.14,0.063]
[1738678856353,37.06665796,211.15,211.14,0.063]
[1738678856522,23.65480943,211.15,211.14,0.063]
[1738678857045,23.65480943,211.17,211.14,0.063]
[1738678857217,43.65480943,211.17,211.14,0.063]
[1738678858145,23.65480943,211.17,211.14,0.063]
[1738678859954,13.41184853,211.16,211.14,0.063]
[1738678860120,23.65480943,211.15,211.14,0.063]
[1738678861522,163.19030943,211.17,211.14,0.063]
[1738678862148,13.41184853,211.16,211.14,0.063]
[1738678862425,37.19214796,211.15,211.14,0.063]
[1738678863021,23.65480943,211.15,211.14,0.063]
[1738678863227,163.19030943,211.17,211.14,0.063]
[1738678863439,23.65480943,211.15,211.14,0.063]
[1738678863842,163.19030943,211.17,211.14,0.063]
[1738678864048,163.18950943,211.21,211.14,0.063]
[1738678864224,134.8,211.22,211.16,23.65480943]
[1738678864430,106.55480943,211.23,211.16,23.65480943]
[1738678864632,23.65480943,211.19,211.14,6.5705]
[1738678864938,23.65480943,211.17,211.14,0.063]
[1738678865849,134.8,211.2,211.14,0.063]
[1738678866028,134.8,211.2,211.17,23.65480943]
[1738678866231,134.8,211.2,211.16,4.7357]
[1738678866434,4.764,211.24,211.17,23.65480943]
[1738678866435,0.03,211.24,211.17,23.65480943]
[1738678866750,0.03,211.24,211.2,14.7757439]
[1738678867349,4.764,211.24,211.19,6.4415]
[1738678868071,14.7757439,211.22,211.14,34.8387439]
[1738678868241,19.5101439,211.22,211.14,34.8387439]
[1738678868636,23.65388117,211.22,211.14,48.45298117]
[1738678868845,23.68388117,211.24,211.14,24.7991]
[1738678869042,0.03,211.24,211.2,23.65388117]
[1738678870044,0.03,211.24,211.22,23.65388117]
[1738678870347,0.03,211.24,211.23,4.7341]
[1738678872069,0.03,211.24,211.23,5.11057]
[1738678872365,0.03,211.29,211.27,0.12549]
[1738678872554,23.65388117,211.43,211.31,20.0]
[1738678872744,23.65388117,211.42,211.34,23.65388117]
[1738678873362,23.65388117,211.41,211.34,23.65388117]
[1738678873662,1.5605,211.45,211.35,23.65388117]
[1738678873663,23.65388117,211.42,211.35,23.65388117]
[1738678873845,4.7301,211.41,211.35,23.65388117]
[1738678874250,4.7301,211.41,211.31,20.0]
[1738678874251,4.7301,211.41,211.33,23.65388117]
[1738678874433,4.7301,211.41,211.28,8.90421291]
[1738678874434,23.68388117,211.36,211.28,31.59748117]
[1738678875272,0.03,211.36,211.3,23.65388117]
[1738678875478,0.03,211.36,211.32,23.65388117]
[1738678875840,0.03,211.36,211.34,23.65388117]
[1738678876462,0.03,211.36,211.35,0.12549]
[1738678876771,0.03,211.36,211.35,7.16006]
[1738678877136,0.03,211.36,211.35,20.57190853]
[1738678877353,0.03,211.36,211.35,6.78359]
[1738678877565,0.03,211.36,211.32,28.38588117]
[1738678877842,0.03,211.36,211.3,35.04438117]
[1738678878270,0.03,211.36,211.3,6.6581]
[1738678878469,23.68388117,211.36,211.28,25.18558117]
[1738678878971,0.03,211.36,211.34,23.65388117]
[1738678879332,0.03,211.36,211.35,23.77937117]
[1738678880247,0.03,211.36,211.35,28.51077117]
[1738678880448,0.03,211.36,211.35,23.65388117]
[1738678881265,0.03,211.36,211.35,30.68324117]
[1738678881471,0.03,211.46,211.35,51.53601969]
[1738678881676,0.03,211.46,211.45,23.65388117]
[1738678882248,0.03,211.46,211.45,35.23494117]
[1738678882454,0.03,211.46,211.45,34.85847117]
[1738678882753,0.03,211.46,211.45,35.23494117]
[1738678883491,0.03,211.46,211.45,34.73298117]
[1738678883783,0.03,211.46,211.43,0.70909781]
[1738678883784,0.03,211.46,211.43,23.65388117]
[1738678884291,0.03,211.46,211.41,23.65388117]
[1738678884491,0.03,211.46,211.37,1.5754]
[1738678884492,23.65388117,211.45,211.37,25.22928117]
[1738678885051,23.65388117,211.43,211.35,30.13728117]
[1738678885361,0.03,211.46,211.42,23.65388117]
[1738678885570,0.03,211.46,211.4,23.65388117]
[1738678886496,0.03,211.46,211.4,28.38408117]
[1738678886954,0.03,211.46,211.42,23.65388117]
[1738678887154,0.03,211.46,211.44,23.65388117]
[1738678887375,0.03,211.46,211.4,23.65388117]
[1738678887987,0.03,211.46,211.42,23.65388117]
[1738678888456,0.03,211.46,211.42,28.38378117]
[1738678888653,0.03,211.46,211.38,20.0]
[1738678888853,0.03,211.46,211.4,43.65388117]
[1738678890059,0.03,211.46,211.42,23.65388117]
[1738678890255,0.03,211.46,211.4,43.65388117]
[1738678891303,0.03,211.46,211.42,23.65388117]
[1738678892173,0.03,211.46,211.44,23.65388117]
[1738678892558,0.03,211.46,211.44,28.38328117]
[1738678893690,0.03,211.46,211.45,0.50196]
[1738678893895,0.03,211.46,211.45,6.1029]
[1738678894067,0.03,211.46,211.45,6.47937]
[1738678894396,0.03,211.46,211.45,6.22839]
[1738678895460,0.03,211.46,211.44,23.65388117]
[1738678896972,0.03,211.46,211.44,28.38328117]
[1738678897785,0.03,211.51,211.48,20.0]
[1738678897974,0.03,211.51,211.5,23.77937117]
[1738678898172,0.03,211.51,211.5,24.73935257]
[1738678898370,0.03,211.51,211.5,24.86484257]
[1738678898682,0.03,211.51,211.5,24.86474217]
[1738678899295,0.03,211.51,211.5,44.4658907]
[1738678899697,0.03,211.51,211.5,49.1939907]
[1738678899902,0.03,211.51,211.5,28.88394117]
[1738678900196,0.03,211.51,211.5,28.38198117]
[1738678900410,0.03,211.51,211.5,23.65388117]
[1738678901105,0.03,211.51,211.5,28.38198117]
[1738678901468,0.03,211.51,211.5,23.65388117]
[1738678902312,0.03,211.51,211.5,28.38198117]
[1738678903298,0.03,211.51,211.5,28.88394117]
[1738678903599,0.03,211.51,211.5,28.50747117]
[1738678903804,0.03,211.51,211.5,23.65388117]
[1738678904777,0.03,211.51,211.48,43.65388117]
[1738678905698,0.03,211.51,211.48,23.65388117]
[1738678906005,0.03,211.51,211.46,23.65388117]
[1738678906508,0.03,211.51,211.4,7.15376191]
[1738678906509,0.03,211.51,211.44,23.65388117]
[1738678907395,13.44184853,211.51,211.44,23.65388117]
[1738678907587,0.03,211.51,211.48,23.65388117]
[1738678908474,0.03,211.51,211.42,24.7395601]
[1738678908475,0.03,211.51,211.5,23.65388117]
[1738678909284,0.03,211.51,211.48,23.65388117]
[1738678911503,0.03,211.51,211.48,28.38218117]
[1738678912321,0.03,211.51,211.48,23.65388117]
[1738678912604,0.03,211.51,211.44,23.65388117]
[1738678913101,0.03,211.51,211.46,23.65388117]
[1738678913503,0.03,211.51,211.48,23.65388117]
[1738678914209,0.03,211.51,211.5,23.65388117]
[1738678915402,0.03,211.51,211.5,24.48852746]
[1738678915603,0.03,211.51,211.5,29.59309746]
[1738678915786,0.03,211.51,211.5,28.88394117]
[1738678918287,0.03,211.58,211.55,0.12549]
[1738678918518,0.03,211.58,211.57,23.65388117]
[1738678919605,0.03,211.58,211.57,23.77937117]
[1738678919811,0.03,211.58,211.57,28.50587117]
[1738678920401,0.03,211.58,211.53,20.0]
[1738678920615,0.03,211.58,211.51,1.70876505]
[1738678920616,0.03,211.58,211.49,23.65388117]
[1738678920817,13.41184853,211.55,211.47,23.65388117]
[1738678921116,23.65388117,211.56,211.47,23.65388117]
[1738678921295,4.727,211.55,211.48,20.0]
[1738678921499,4.727,211.55,211.47,23.65388117]
[1738678922016,23.65388117,211.54,211.47,23.65388117]
[1738678922395,13.41184853,211.53,211.45,23.65388117]
[1738678923136,23.65388117,211.54,211.47,23.65388117]
[1738678923337,4.7274,211.53,211.47,23.65388117]
[1738678923510,13.41184853,211.52,211.45,23.65388117]
[1738678924435,37.0657297,211.52,211.45,23.65388117]
[1738678925238,4.7279,211.51,211.45,23.71688117]
[1738678926303,13.53733853,211.5,211.45,0.063]
[1738678926503,23.65388117,211.46,211.45,0.063]
[1738678926702,37.0657297,211.46,211.45,0.063]
[1738678927131,172.2421997,211.46,211.45,0.063]
[1738678927511,171.8657297,211.46,211.45,0.063]
[1738678927827,171.9912197,211.46,211.45,0.063]
[1738678928019,20.12549,211.42,211.3,37.28666434]
[1738678928216,23.65388117,211.35,211.3,7.28378317]
[1738678928411,23.65388117,211.34,211.3,7.28378317]
[1738678928939,23.65388117,211.35,211.3,7.28378317]
[1738678929504,23.65388117,211.36,211.3,7.28378317]
[1738678929924,23.65388117,211.35,211.3,7.28378317]
[1738678930314,28.38528117,211.36,211.3,7.28378317]
[1738678930615,28.38528117,211.36,211.29,0.063]
[1738678930819,23.65388117,211.35,211.29,0.063]
[1738678931343,23.65388117,211.36,211.29,0.063]
[1738678932007,23.65388117,211.37,211.31,20.0]
[1738678932210,134.8,211.4,211.35,23.65388117]
[1738678932413,23.65388117,211.43,211.36,23.65388117]
[1738678932634,23.65388117,211.42,211.34,23.65388117]
[1738678933004,13.41184853,211.45,211.32,0.12549]
[1738678933005,23.65388117,211.39,211.32,23.65388117]
[1738678933204,23.65388117,211.37,211.29,23.71688117]
[1738678933421,23.65388117,211.36,211.29,23.71688117]
[1738678933813,23.65388117,211.31,211.29,0.063]
[1738678934622,148.58831853,211.3,211.29,0.063]
[1738678935426,0.12549,211.26,211.23,0.063]
[1738678935736,37.0657297,211.24,211.23,0.063]
[1738678937136,134.8,211.25,211.23,0.063]
[1738678938129,23.65388117,211.26,211.23,0.063]
[1738678938331,37.0657297,211.24,211.23,0.063]
[1738678938529,37.1912197,211.24,211.23,0.063]
[1738678939437,42.3015897,211.24,211.23,0.063]
[1738678940347,41.9251197,211.24,211.23,0.063]
[1738678941214,41.7996297,211.24,211.23,0.063]
[1738678942537,134.8,211.28,211.23,0.063]
[1738678942751,28.38668117,211.3,211.23,0.063]
[1738678942959,13.41184853,211.29,211.23,0.063]
[1738678943632,18.14474853,211.29,211.23,0.063]
[1738678944657,23.65388117,211.26,211.23,0.063]
[1738678945642,13.41184853,211.27,211.23,0.063]
[1738678945946,23.65388117,211.28,211.23,0.063]
[1738678946440,4.7325,211.31,211.23,23.71688117]
[1738678946847,23.65388117,211.32,211.23,23.71688117]
[1738678947039,28.38598117,211.32,211.23,28.45098117]
[1738678947356,23.65388117,211.32,211.25,23.65388117]
[1738678947546,23.65388117,211.34,211.27,23.65388117]
[1738678948743,23.65388117,211.36,211.27,28.38708117]
[1738678948918,23.65388117,211.36,211.29,23.65388117]
[1738678950052,23.65388117,211.38,211.31,23.65388117]
[1738678950348,134.8,211.39,211.31,23.65388117]
[1738678950548,23.65388117,211.36,211.29,23.65388117]
[1738678950846,23.65388117,211.36,211.27,23.65388117]
[1738678951038,28.38528117,211.36,211.27,23.65388117]
[1738678951549,0.03,211.34,211.27,23.65388117]
[1738678952047,23.65388117,211.32,211.23,23.71688117]
[1738678952434,23.65388117,211.3,211.23,23.71688117]
[1738678954149,4.7328,211.29,211.23,0.063]
[1738678954352,13.41184853,211.28,211.23,0.063]
[1738678954837,37.0657297,211.28,211.23,0.063]
[1738678955240,139.5328,211.29,211.23,0.063]
[1738678955440,37.0657297,211.28,211.23,0.063]
[1738678956059,4.7332,211.27,211.23,0.063]
[1738678957955,134.8,211.29,211.23,0.063]
[1738678958157,134.8,211.29,211.23,23.71688117]
[1738678958344,23.68388117,211.34,211.25,23.65388117]
[1738678958663,28.41568117,211.34,211.25,23.65388117]
[1738678959468,28.41568117,211.34,211.23,23.71688117]
[1738678959469,23.65388117,211.3,211.23,23.71688117]
[1738678959649,23.65388117,211.28,211.23,0.063]
[1738678961338,37.0657297,211.3,211.23,0.063]
[1738678961758,23.65388117,211.3,211.23,0.063]
[1738678961963,28.38658117,211.3,211.23,0.063]
[1738678963637,23.65388117,211.28,211.23,0.063]
[1738678965866,4.7332,211.27,211.23,0.063]
[1738678967178,4.733,211.28,211.23,0.063]
[1738678967870,28.38688117,211.28,211.23,0.063]
[1738678970967,13.41184853,211.27,211.23,0.063]
[1738678971152,18.14514853,211.27,211.23,0.063]
[1738678972384,4.7333,211.27,211.23,0.063]
[1738678973474,13.41184853,211.25,211.23,0.063]
[1738678973653,158.57937117,211.24,211.23,0.063]
[1738678973854,158.45388117,211.24,211.23,0.063]
[1738678974268,171.8657297,211.24,211.23,0.063]
[1738678975351,176.5996297,211.24,211.23,0.063]
[1738678976679,167.72960002,211.24,211.23,0.063]
[1738678976985,32.92960002,211.24,211.23,0.063]
[1738678979961,14.78385149,211.26,211.23,0.063]
[1738678980166,102.44645149,211.3,211.23,0.063]
[1738678980364,14.78385149,211.29,211.23,0.063]
[1738678981380,14.78385149,211.28,211.23,0.063]
[1738678981959,19.51665149,211.29,211.23,0.063]
[1738678984375,0.03,211.3,211.28,14.78385149]
[1738678985983,0.03,211.3,211.26,14.78385149]
[1738678986191,148.21184853,211.29,211.24,6.0388]
[1738678986498,14.78385149,211.26,211.23,0.063]
[1738678987869,19.51755149,211.26,211.23,0.063]
[1738678988269,28.19570002,211.24,211.23,0.063]
[1738678988689,13.41184853,211.24,211.23,0.063]
[1738678988988,134.8,211.25,211.23,0.063]
[1738678989694,158.44838516,211.25,211.23,0.063]
[1738678989905,23.64838516,211.25,211.23,0.063]
[1738678990081,4.7339,211.24,211.23,0.063]
[1738678991800,158.44838516,211.25,211.23,0.063]
[1738678992683,163.18208516,211.25,211.23,0.063]
[1738678992880,148.21184853,211.24,211.23,0.063]
[1738678993495,152.94574853,211.24,211.23,0.063]
[1738678994478,18.52221853,211.24,211.23,0.063]
[1738678997899,23.64838516,211.25,211.23,0.063]
[1738678998105,28.38208516,211.25,211.23,0.063]
[1738678999011,13.78831853,211.24,211.23,0.063]
[1738679000309,18.52221853,211.24,211.23,0.063]
[1738679001607,18.64770853,211.24,211.23,0.063]
[1738679001811,0.25098,211.18,211.14,0.063]
[1738679001999,37.06023369,211.15,211.14,0.063]
[1738679002610,134.8,211.21,211.14,43.71138516]
[1738679002812,134.8,211.21,211.16,23.64838516]
[1738679002990,134.8,211.21,211.14,28.44748516]
[1738679003202,37.06023369,211.2,211.14,0.063]
[1738679003409,13.41184853,211.17,211.14,0.063]
[1738679003599,13.41184853,211.15,211.14,0.063]
[1738679004516,23.64838516,211.18,211.14,0.063]
[1738679005219,82.9,211.19,211.14,23.71138516]
[1738679005515,82.9,211.19,211.18,23.64838516]
[1738679005716,134.8,211.23,211.19,4.735]
[1738679005881,134.8,211.27,211.21,23.64838516]
[1738679006885,0.03,211.29,211.19,16.5726]
[1738679007201,0.03,211.29,211.28,23.64838516]
[1738679007711,0.03,211.29,211.22,28.38268516]
[1738679007911,134.8,211.28,211.22,28.38268516]
[1738679008090,134.8,211.28,211.22,4.7343]
[1738679008910,134.8,211.28,211.21,6.2266]
[1738679008911,13.41184853,211.27,211.21,6.2266]
[1738679009113,23.64838516,211.26,211.21,6.2266]
[1738679010290,134.8,211.28,211.21,6.2266]
[1738679010501,134.8,211.28,211.27,23.64838516]
[1738679010791,0.03,211.29,211.27,14.76412749]
[1738679011007,0.03,211.29,211.27,16.29792749]
[1738679011204,0.03,211.29,211.28,1.08626174]
[1738679011402,0.03,211.34,211.3,0.37647]
[1738679011710,0.03,211.34,211.33,14.88961749]
[1738679012097,141.81380627,211.46,211.36,20.0]
[1738679012298,141.81380627,211.46,211.39,14.76412749]
[1738679012513,141.81380627,211.46,211.36,20.0]
[1738679012514,7.01380627,211.46,211.41,21.28952749]
[1738679012708,7.01380627,211.46,211.42,23.59200862]
[1738679013311,7.01380627,211.46,211.44,23.59200862]
[1738679013712,0.03,211.51,211.44,23.59200862]
[1738679013913,0.03,211.51,211.47,23.59200862]
[1738679014103,9.15708286,211.45,211.44,28.32140862]
[1738679014622,9.15708286,211.45,211.44,43.59200862]
[1738679014821,9.15708286,211.45,211.44,23.59200862]
[1738679015026,7.26740797,211.45,211.44,23.59200862]
[1738679015216,7.26740797,211.45,211.42,23.59200862]
[1738679015398,7.26740797,211.45,211.44,20.0]
[1738679015602,7.26740797,211.45,211.42,23.59200862]
[1738679015807,7.26740797,211.45,211.41,6.5254]
[1738679016204,7.26740797,211.45,211.39,7.28378317]
[1738679016411,23.59200862,211.44,211.39,7.28378317]
[1738679016707,7.26740797,211.45,211.39,7.28378317]
[1738679016922,7.26740797,211.45,211.43,23.59200862]
[1738679017122,0.03,211.46,211.43,23.59200862]
[1738679018615,0.03,211.46,211.41,23.59200862]
[1738679018927,0.03,211.46,211.43,23.59200862]
[1738679019509,0.03,211.46,211.45,43.59200862]
[1738679020127,0.03,211.46,211.45,23.59200862]
[1738679020346,0.03,211.46,211.43,23.59200862]
[1738679020508,0.03,211.46,211.39,23.59200862]
[1738679020710,0.03,211.46,211.37,1.6392]
[1738679020711,23.59200862,211.44,211.37,25.23120862]
[1738679021032,13.41184853,211.45,211.39,23.59200862]
[1738679021627,23.62200862,211.46,211.37,29.96210862]
[1738679022438,23.59200862,211.44,211.36,6.0757]
[1738679022618,28.32160862,211.44,211.36,6.0757]
[1738679023434,23.59200862,211.42,211.36,6.0757]
[1738679023946,0.03,211.46,211.41,23.59200862]
[1738679024114,0.03,211.46,211.43,23.59200862]
[1738679024516,0.03,211.46,211.39,43.59200862]
[1738679026138,0.03,211.46,211.4,4.7303]
[1738679026615,0.03,211.46,211.41,23.59200862]
[1738679027335,0.03,211.46,211.43,23.59200862]
[1738679027515,300.03,211.46,211.43,23.59200862]
[1738679029033,300.03,211.46,211.42,4.7299]
[1738679029235,277.06181706,211.46,211.41,23.59200862]
[1738679029623,281.42285446,211.46,211.39,23.59200862]
[1738679029825,281.42285446,211.46,211.37,4.731]
[1738679029826,281.42285446,211.46,211.37,28.32300862]
[1738679030035,276.69385446,211.46,211.37,28.32300862]
[1738679030233,276.69385446,211.46,211.39,43.59200862]
[1738679030443,276.69385446,211.46,211.39,23.59200862]
[1738679030946,276.69385446,211.46,211.43,23.59200862]
[1738679031248,276.69385446,211.46,211.4,20.0]
[1738679031444,276.69385446,211.46,211.39,48.32240862]
[1738679031654,276.69385446,211.46,211.36,6.0757]
[1738679031655,23.59200862,211.45,211.37,28.32280862]
[1738679032649,14.75292644,211.44,211.37,4.7308]
[1738679033627,291.4467809,211.46,211.38,14.75292644]
[1738679034761,14.75292644,211.44,211.36,6.0757]
[1738679034922,14.75292644,211.44,211.36,14.75292644]
[1738679035325,134.8,211.45,211.38,14.75292644]
[1738679035755,14.75292644,211.44,211.36,34.75292644]
[1738679036144,291.4467809,211.46,211.41,20.0]
[1738679036920,14.75292644,211.44,211.36,14.75292644]
[1738679037138,14.75292644,211.44,211.37,4.7308]
[1738679037490,14.75292644,211.44,211.39,20.0]
[1738679037634,276.69385446,211.46,211.4,14.75292644]
[1738679038139,291.4467809,211.46,211.38,14.75292644]
[1738679038768,291.4467809,211.46,211.39,4.7305]
[1738679039744,276.69385446,211.46,211.43,20.0]
[1738679041239,14.75292644,211.44,211.36,14.75292644]
[1738679041664,14.75292644,211.44,211.39,20.0]
[1738679042521,276.69385446,211.46,211.45,20.0]
[1738679042784,267.51245446,211.46,211.45,35.12939644]
[1738679042964,267.51245446,211.46,211.45,35.25488644]
[1738679043276,164.60484099,211.46,211.45,35.25488644]
[1738679043442,162.93824099,211.46,211.45,35.25488644]
[1738679043867,162.93824099,211.46,211.45,35.12939644]
[1738679044341,162.93824099,211.46,211.45,34.75292644]
[1738679045169,162.93824099,211.46,211.43,21.19862644]
[1738679045343,162.93824099,211.46,211.41,14.75292644]
[1738679045674,162.93824099,211.46,211.39,14.75292644]
[1738679046147,162.93824099,211.46,211.42,20.0]
[1738679046347,13.41184853,211.45,211.39,14.75292644]
[1738679046654,162.93824099,211.46,211.41,23.59629412]
[1738679046845,13.41184853,211.45,211.41,23.59629412]
[1738679047035,13.41184853,211.45,211.39,23.59629412]
[1738679048671,13.41184853,211.45,211.37,43.59629412]
[1738679049364,13.41184853,211.43,211.37,43.59629412]
[1738679049673,13.41184853,211.43,211.35,23.59629412]
[1738679049849,13.41184853,211.39,211.34,0.063]
[1738679050263,13.41184853,211.39,211.34,20.063]
[1738679050450,134.8,211.41,211.34,20.063]
[1738679051753,23.59629412,211.4,211.34,20.063]
[1738679053464,13.41184853,211.39,211.34,0.063]
[1738679053664,13.41184853,211.37,211.34,0.063]
[1738679054052,158.39629412,211.4,211.34,20.063]
[1738679054257,134.8,211.4,211.36,20.0]
[1738679054740,158.39629412,211.4,211.34,20.063]
[1738679055266,13.41184853,211.39,211.34,20.063]
[1738679055465,23.59629412,211.38,211.34,0.063]
[1738679056464,13.41184853,211.39,211.34,0.063]
[1738679056878,134.8,211.4,211.34,0.063]
[1738679057175,23.59629412,211.42,211.34,0.063]
[1738679057670,23.59629412,211.42,211.36,20.0]
[1738679057866,25.11869412,211.44,211.38,20.0]
[1738679058067,23.59629412,211.44,211.38,20.0]
[1738679058777,23.59629412,211.42,211.34,0.063]
[1738679058947,13.41184853,211.41,211.34,0.063]
[1738679059149,23.59629412,211.42,211.36,20.0]
[1738679059384,2.81286536,211.43,211.36,20.0]
[1738679059588,16.22471389,211.43,211.36,20.0]
[1738679059756,13.41184853,211.42,211.36,20.0]
[1738679060077,37.00814265,211.42,211.36,20.0]
[1738679060570,2.81286536,211.43,211.42,20.0]
[1738679060746,162.96824099,211.46,211.42,43.59629412]
[1738679061465,37.00814265,211.45,211.36,23.59629412]
[1738679061669,23.59629412,211.43,211.34,23.65929412]
[1738679061866,23.59629412,211.43,211.37,20.0]
[1738679062070,37.00814265,211.45,211.37,20.0]
[1738679062576,37.00814265,211.45,211.39,20.0]
[1738679062879,13.41184853,211.42,211.39,20.0]
[1738679063065,13.41184853,211.42,211.37,20.0]
[1738679066880,28.1651553,211.43,211.38,20.0]
[1738679069080,13.41184853,211.41,211.34,0.063]
[1738679069259,14.75330677,211.39,211.34,0.063]
[1738679069583,13.41184853,211.38,211.34,0.063]
[1738679070062,13.41184853,211.38,211.34,7.37327795]
[1738679072273,13.41184853,211.36,211.34,0.063]
[1738679073408,28.1651553,211.35,211.34,0.063]
[1738679073605,28.5416253,211.35,211.34,0.063]
[1738679074172,33.2730253,211.35,211.34,0.063]
[1738679075792,13.66282853,211.34,211.28,7.31027795]
[1738679075994,28.1651553,211.29,211.28,7.31027795]
[1738679076799,28.1651553,211.29,211.24,20.0]
[1738679076800,13.41184853,211.29,211.24,20.0]
[1738679077105,13.41184853,211.29,211.23,14.81630677]
[1738679077286,14.75330677,211.31,211.23,14.81630677]
[1738679077887,13.41184853,211.3,211.23,14.81630677]
[1738679078606,13.41184853,211.3,211.25,14.75330677]
[1738679080001,46.96937914,211.52,211.28,14.75330677]
[1738679080002,14.75330677,211.36,211.28,14.75330677]
[1738679080187,14.75330677,211.36,211.29,14.75330677]
[1738679080392,141.0772,211.39,211.27,14.75330677]
[1738679080393,13.41184853,211.33,211.27,14.75330677]
[1738679080592,13.41184853,211.33,211.28,20.0]
[1738679082186,14.75330677,211.36,211.27,14.75330677]
[1738679082498,13.41184853,211.35,211.29,14.75330677]
[1738679082985,149.55330677,211.38,211.32,20.0]
[1738679083195,134.8,211.38,211.31,14.75330677]
[1738679084008,13.41184853,211.37,211.31,14.75330677]
[1738679087022,13.41184853,211.38,211.31,14.75330677]
[1738679088133,46.82312021,211.59,211.31,14.75330677]
[1738679088134,1.6416,211.44,211.37,14.75330677]
[1738679088508,13.41184853,211.43,211.37,14.75330677]
[1738679089215,13.41184853,211.43,211.36,34.75330677]
[1738679089913,13.41184853,211.43,211.37,14.75330677]
[1738679090407,13.41184853,211.43,211.36,20.0]
[1738679090616,13.41184853,211.43,211.38,14.75330677]
[1738679091315,162.96824099,211.46,211.4,14.75330677]
[1738679091839,13.41184853,211.45,211.39,14.75330677]
[1738679092206,28.1651553,211.45,211.38,14.75330677]
[1738679092507,0.25098,211.44,211.36,20.0]
[1738679092708,13.41184853,211.37,211.31,0.063]
[1738679093736,13.41184853,211.37,211.33,20.0]
[1738679094717,13.41184853,211.37,211.31,0.063]
[1738679095041,14.75330677,211.36,211.31,0.063]
[1738679096223,14.75330677,211.36,211.31,20.063]
[1738679099849,134.8,211.39,211.32,14.75330677]
[1738679100015,134.8,211.39,211.34,14.75330677]
[1738679100210,134.8,211.39,211.36,14.75330677]
[1738679100413,162.96824099,211.46,211.38,15.75330677]
[1738679100617,162.96824099,211.46,211.45,14.75330677]
[1738679101746,162.96824099,211.46,211.45,20.0]
[1738679102549,162.96824099,211.46,211.45,14.75330677]
[1738679102749,162.96824099,211.46,211.41,14.75330677]
[1738679103143,162.96824099,211.46,211.44,20.0]
[1738679103328,13.41184853,211.45,211.44,20.0]
[1738679103640,162.96824099,211.46,211.43,34.75330677]
[1738679104734,13.41184853,211.45,211.43,20.0]
[1738679104934,14.75330677,211.44,211.4,7.31027795]
[1738679105139,13.41184853,211.43,211.4,7.31027795]
[1738679105343,13.41184853,211.43,211.37,22.06358472]
[1738679106324,14.75330677,211.42,211.37,7.31027795]
[1738679106538,14.75330677,211.4,211.37,7.31027795]
[1738679107448,13.41184853,211.39,211.37,7.31027795]
[1738679107654,148.21184853,211.38,211.37,7.31027795]
[1738679107849,13.41184853,211.37,211.32,7.31027795]
[1738679108849,13.41184853,211.35,211.32,7.31027795]
[1738679109154,134.8,211.36,211.32,7.31027795]
[1738679109951,134.8,211.36,211.33,14.75330677]
[1738679111449,134.8,211.36,211.31,34.81630677]
[1738679112529,134.8,211.36,211.33,0.063]
[1738679113551,1.5475,211.41,211.33,14.81630677]
[1738679113754,1.5475,211.41,211.37,14.75330677]
[1738679113937,13.41184853,211.42,211.37,14.75330677]
[1738679114141,134.8,211.43,211.37,14.75330677]
[1738679114345,14.75330677,211.4,211.33,0.063]
[1738679114865,13.41184853,211.39,211.33,0.063]
[1738679115943,14.75330677,211.4,211.33,0.063]
[1738679116460,13.41184853,211.41,211.33,14.81630677]
[1738679116666,13.41184853,211.39,211.33,0.063]
[1738679116837,13.41184853,211.39,211.34,20.0]
[1738679119571,148.21184853,211.39,211.34,20.0]
[1738679119952,13.41184853,211.37,211.33,0.063]
[1738679122974,134.8,211.38,211.33,0.063]
[1738679125558,13.41184853,211.38,211.33,0.063]
[1738679127164,18.14264853,211.38,211.33,0.063]
[1738679127354,32.8959553,211.38,211.33,0.063]
[1738679128392,4.85649,211.37,211.33,0.063]
[1738679128674,28.1651553,211.38,211.33,0.063]
[1738679128675,32.8959553,211.38,211.33,0.063]